bitfinex-derivatives/quotes_ETHF0:USTF0_20260123
["timestamp","ask_amount","ask_price","bid_price","bid_amount"]
[1769138941168,0.14178832,2966.5,2965.1,2.41716397]
[1769138941472,0.85688245,2966.4,2965.2,2.41716397]
[1769138941765,0.85688245,2966.3,2965.2,2.41716397]
[1769138941971,0.14178832,2966.5,2965.2,2.55841043]
[1769138942166,0.85684065,2966.4,2965.2,2.55841043]
[1769138942366,0.85684065,2966.3,2965.2,2.55841043]
[1769138942666,0.14178832,2966.5,2965.2,2.55841043]
[1769138942864,0.85681794,2966.4,2965.2,2.55841043]
[1769138943068,0.85681794,2966.3,2965.2,2.55841043]
[1769138943368,0.14178832,2966.5,2965.2,2.55841043]
[1769138943574,0.85678899,2966.4,2965.2,2.55841043]
[1769138943768,0.85678899,2966.3,2965.2,2.55841043]
[1769138943968,0.14178832,2966.5,2965.2,2.55841043]
[1769138944167,0.85678813,2966.4,2965.2,2.55841043]
[1769138944368,0.85678813,2966.3,2965.2,2.55841043]
[1769138944668,0.14178832,2966.5,2965.2,2.55841043]
[1769138944868,0.85676958,2966.4,2965.2,2.55841043]
[1769138945071,0.85676958,2966.3,2965.2,2.55841043]
[1769138945268,0.14178832,2966.5,2965.2,2.55841043]
[1769138945469,0.85675306,2966.4,2965.2,2.55841043]
[1769138945666,0.85675306,2966.3,2965.2,2.55841043]
[1769138945870,0.14178832,2966.5,2965.2,2.55841043]
[1769138946176,0.85674784,2966.4,2965.2,2.55841043]
[1769138946378,0.85674784,2966.3,2965.2,2.55841043]
[1769138946566,0.14178832,2966.5,2965.2,2.55841043]
[1769138946766,0.85673619,2966.4,2965.2,2.55841043]
[1769138946966,0.85673619,2966.3,2965.2,2.55841043]
[1769138947172,0.14178832,2966.5,2965.2,2.55841043]
[1769138947372,0.85672129,2966.4,2965.2,2.55841043]
[1769138947574,0.85672129,2966.3,2965.2,2.55841043]
[1769138947774,0.14178832,2966.5,2965.2,2.55841043]
[1769138947971,0.8567239,2966.4,2965.2,2.55841043]
[1769138948173,0.8567239,2966.3,2965.2,2.55841043]
[1769138948476,0.8567239,2966.2,2965.2,0.14124646]
[1769138948779,0.14178832,2966.5,2965.2,0.14124646]
[1769138948982,0.85671465,2966.4,2965.2,0.14124646]
[1769138949179,0.85671465,2966.3,2965.2,0.14124646]
[1769138949379,0.85671465,2966.2,2965.2,0.14124646]
[1769138949681,0.14178832,2966.5,2965.2,0.14124646]
[1769138949876,0.85672573,2966.4,2965.2,0.14124646]
[1769138950078,0.85672573,2966.3,2965.2,0.14124646]
[1769138950276,0.85672573,2966.2,2965.2,0.14124646]
[1769138950577,0.14178832,2966.5,2965.2,0.14124646]
[1769138950776,0.85671647,2966.4,2965.2,0.14124646]
[1769138950976,0.85671647,2966.3,2965.2,0.14124646]
[1769138951176,0.85671647,2966.2,2965.2,0.14124646]
[1769138951376,0.14178832,2966.5,2965.2,0.14124646]
[1769138951578,0.85670869,2966.4,2965.2,0.14124646]
[1769138951775,0.8567065,2966.3,2965.2,0.14124646]
[1769138951975,0.8567065,2966.2,2965.2,0.14124646]
[1769138952180,0.8567065,2966.1,2965.2,0.14124646]
[1769138952375,0.14178832,2966.5,2965.2,0.14124646]
[1769138952577,0.85671659,2966.4,2965.2,0.14124646]
[1769138952778,0.85671659,2966.3,2965.2,0.14124646]
[1769138952979,0.85671659,2966.2,2965.2,0.14124646]
[1769138953174,0.85671659,2966.1,2965.0,2.41716397]
[1769138953375,0.14178832,2966.5,2965.0,2.41716397]
[1769138953575,0.85672771,2966.4,2965.0,2.41716397]
[1769138953781,0.85672771,2966.3,2965.0,2.41716397]
[1769138953979,0.85672771,2966.2,2965.0,2.41716397]
[1769138954182,0.85672771,2966.1,2965.0,2.41716397]
[1769138954376,0.14178832,2966.5,2965.0,2.41716397]
[1769138954575,0.85674705,2966.4,2965.0,2.41716397]
[1769138954871,0.85674705,2966.3,2965.0,2.41716397]
[1769138955075,0.85674705,2966.2,2965.0,2.41716397]
[1769138955371,0.85674705,2966.1,2965.0,2.41716397]
[1769138955571,0.14178832,2966.5,2965.0,2.41716397]
[1769138955771,0.85676175,2966.4,2965.0,2.41716397]
[1769138956076,0.85676175,2966.3,2965.0,2.41716397]
[1769138956274,0.85676175,2966.2,2965.0,2.41716397]
[1769138956470,0.85676175,2966.1,2965.0,2.41716397]
[1769138956674,0.14178832,2966.5,2965.0,2.41716397]
[1769138956873,0.85443203,2966.4,2965.0,2.41716397]
[1769138957072,0.85443203,2966.3,2965.0,2.41716397]
[1769138957382,0.85443203,2966.2,2965.0,2.41716397]
[1769138957580,0.85443203,2966.1,2965.0,2.41716397]
[1769138957782,0.14178832,2966.5,2965.0,2.41716397]
[1769138957981,0.85444827,2966.4,2965.0,2.41716397]
[1769138958182,0.85444827,2966.3,2965.0,2.41716397]
[1769138958383,0.14178832,2966.5,2965.2,2.41716397]
[1769138958583,0.85446269,2966.4,2965.2,2.41716397]
[1769138958781,0.85446269,2966.3,2965.2,2.41716397]
[1769138958981,0.14178832,2966.5,2965.2,2.41716397]
[1769138959284,0.85445575,2966.4,2965.2,2.41716397]
[1769138959485,0.85445575,2966.3,2965.2,2.41716397]
[1769138959685,0.14178832,2966.5,2965.2,2.41716397]
[1769138959878,0.85446727,2966.4,2965.2,2.41716397]
[1769138960184,0.85446727,2966.3,2965.2,2.41716397]
[1769138960385,0.14178832,2966.5,2965.2,2.41716397]
[1769138960684,0.8544525,2966.4,2965.2,2.41716397]
[1769138960885,0.8544525,2966.3,2965.2,2.41716397]
[1769138961089,0.14178832,2966.5,2965.2,2.41716397]
[1769138961283,0.85446913,2966.4,2965.2,2.41716397]
[1769138961483,0.85446913,2966.3,2965.2,2.41716397]
[1769138961781,0.14178832,2966.5,2965.2,2.41716397]
[1769138961981,0.85448007,2966.4,2965.2,2.41716397]
[1769138962184,0.85448007,2966.3,2965.2,2.41716397]
[1769138962383,0.14178832,2966.5,2965.3,2.41716397]
[1769138962584,0.85445488,2966.4,2965.3,2.41716397]
[1769138962785,0.14178832,2966.5,2965.3,2.41716397]
[1769138962984,0.85445488,2966.4,2965.3,2.41716397]
[1769138963176,0.14178832,2966.5,2965.3,2.41716397]
[1769138963375,0.85444713,2966.4,2965.3,2.41716397]
[1769138963581,0.14178832,2966.5,2965.3,2.41716397]
[1769138963878,0.85445288,2966.4,2965.3,2.41716397]
[1769138964081,0.14178832,2966.5,2965.3,2.41716397]
[1769138964281,0.85446189,2966.4,2965.3,2.41716397]
[1769138964478,0.14178832,2966.5,2965.3,2.41716397]
[1769138964684,0.85444662,2966.4,2965.3,2.41716397]
[1769138964883,0.14178832,2966.5,2965.3,2.41716397]
[1769138965187,0.85444743,2966.4,2965.3,2.41716397]
[1769138965387,0.14178832,2966.5,2965.3,2.41716397]
[1769138965589,0.85446339,2966.4,2965.3,2.41716397]
[1769138965791,0.14178832,2966.5,2965.3,2.41716397]
[1769138966095,0.85447039,2966.4,2965.3,2.41716397]
[1769138966391,0.14178832,2966.5,2965.3,2.41716397]
[1769138966592,0.8544911,2966.4,2965.3,2.41716397]
[1769138966796,0.14178832,2966.5,2965.3,2.41716397]
[1769138967090,0.85447375,2966.4,2965.3,2.41716397]
[1769138967294,0.14178832,2966.5,2965.3,2.41716397]
[1769138967592,0.85450654,2966.4,2965.3,2.41716397]
[1769138967788,0.14178832,2966.5,2965.3,2.41716397]
[1769138967989,0.85451088,2966.4,2965.3,2.41716397]
[1769138968192,0.14178832,2966.5,2965.3,2.41716397]
[1769138968394,0.85454407,2966.4,2965.2,2.41716397]
[1769138968591,0.85454407,2966.3,2965.2,2.41716397]
[1769138968894,0.14178832,2966.5,2965.2,2.41716397]
[1769138969088,0.85456924,2966.4,2965.2,2.41716397]
[1769138969289,0.85456924,2966.3,2965.2,2.41716397]
[1769138969493,0.14178832,2966.5,2965.2,2.41716397]
[1769138969695,0.85461919,2966.4,2965.2,2.41716397]
[1769138969994,0.85461919,2966.3,2965.2,2.41716397]
[1769138970193,0.14178832,2966.5,2965.2,2.41716397]
[1769138970397,0.85462196,2966.4,2965.2,2.41716397]
[1769138970598,0.85462196,2966.3,2965.2,2.41716397]
[1769138970802,0.14178832,2966.5,2965.2,2.41716397]
[1769138970999,0.85461415,2966.4,2965.2,2.41716397]
[1769138971199,0.85461415,2966.3,2965.2,2.41716397]
[1769138971493,0.85461415,2966.2,2965.1,2.56996322]
[1769138971694,0.14178832,2966.5,2965.1,2.56996322]
[1769138971996,0.85464154,2966.4,2965.1,2.56996322]
[1769138972186,0.85464154,2966.3,2965.1,2.56996322]
[1769138972388,0.85464154,2966.2,2965.1,2.56996322]
[1769138972692,0.14178832,2966.5,2965.1,2.56996322]
[1769138972892,0.85462094,2966.4,2965.1,3.46077499]
[1769138973087,0.85462094,2966.3,2965.1,3.46077499]
[1769138973293,0.85462094,2966.2,2965.1,3.46077499]
[1769138973494,1.03260009,2966.5,2965.1,3.46077499]
[1769138973693,0.85461176,2966.4,2965.1,3.46077499]
[1769138973893,0.85461176,2966.3,2965.1,3.46077499]
[1769138974093,0.85461176,2966.2,2965.1,3.46077499]
[1769138974297,1.03260009,2966.5,2965.1,3.46077499]
[1769138974499,0.85460425,2966.4,2965.1,3.46077499]
[1769138974699,0.85460425,2966.3,2965.1,3.46077499]
[1769138974900,0.85460425,2966.2,2965.1,3.46077499]
[1769138975101,1.03260009,2966.5,2965.1,3.46077499]
[1769138975303,0.85460425,2966.4,2965.1,3.46077499]
[1769138975598,0.85460425,2966.3,2965.1,3.46077499]
[1769138975897,0.85460425,2966.2,2965.1,3.46077499]
[1769138976099,1.03260009,2966.5,2965.1,3.46077499]
[1769138976300,0.8545981,2966.4,2965.1,3.46077499]
[1769138976486,0.8545981,2966.3,2965.1,3.46077499]
[1769138976688,0.8545981,2966.2,2965.1,3.46077499]
[1769138976890,1.03260009,2966.5,2965.1,3.46077499]
[1769138977092,0.85458788,2966.4,2965.1,3.46077499]
[1769138977400,0.85458788,2966.3,2965.1,3.46077499]
[1769138977599,0.85458788,2966.2,2965.1,3.46077499]
[1769138977801,1.03260009,2966.5,2965.1,3.46077499]
[1769138978000,0.85457179,2966.4,2965.1,3.46077499]
[1769138978296,0.85457179,2966.3,2965.2,2.41716397]
[1769138978502,0.85457179,2966.2,2965.2,2.41716397]
[1769138978802,1.03260009,2966.5,2965.2,2.41716397]
[1769138978995,0.85455557,2966.4,2965.2,2.41716397]
[1769138979196,0.85455557,2966.3,2965.2,2.41716397]
[1769138979396,0.85455557,2966.2,2965.1,3.46077499]
[1769138979591,0.14283543,2966.4,2965.1,3.46077499]
[1769138979900,0.85454653,2966.3,2965.1,3.46077499]
[1769138980092,0.85454653,2966.2,2965.1,3.46077499]
[1769138980299,0.14283543,2966.4,2965.1,3.46077499]
[1769138980600,0.9973649,2966.3,2965.1,3.30797574]
[1769138980803,0.85452947,2966.2,2965.1,2.41716397]
[1769138980999,1.74534124,2966.2,2965.1,2.41716397]
[1769138981200,0.89081177,2966.2,2965.0,2.41716397]
[1769138985000,0.14283543,2966.3,2965.1,3.30797574]
[1769138985202,0.85428504,2966.2,2965.1,3.30797574]
[1769138985504,0.14283543,2966.3,2965.1,3.30797574]
[1769138985701,0.85427128,2966.2,2965.1,3.30797574]
[1769138985905,0.14283543,2966.3,2965.1,3.30797574]
[1769138986106,0.85427128,2966.2,2965.1,3.30797574]
[1769138986303,0.14283543,2966.3,2965.1,3.30797574]
[1769138986503,0.85425463,2966.2,2965.1,3.30797574]
[1769138986804,0.14283543,2966.3,2965.1,3.30797574]
[1769138987002,0.85442762,2966.2,2965.1,3.30797574]
[1769138987202,0.14283543,2966.3,2965.1,3.30797574]
[1769138987403,0.85441682,2966.2,2965.1,3.30797574]
[1769138987604,0.14283543,2966.3,2965.1,3.30797574]
[1769138987804,0.85442029,2966.2,2965.1,3.30797574]
[1769138988003,3.04577107,2967.3,2965.0,2.41716397]
[1769138988004,1.0336472,2966.0,2965.0,2.41716397]
[1769138988202,1.0336472,2966.0,2964.9,2.41962292]
[1769138988703,0.005058,2965.7,2964.9,2.41962292]
[1769138992911,0.005058,2965.7,2964.9,3.31043469]
[1769138993618,0.005058,2965.7,2964.9,0.89327072]
[1769138994913,0.005058,2965.7,2964.9,0.00245895]
[1769138996422,0.005058,2965.7,2964.9,0.89327072]
[1769139000719,0.89081177,2966.5,2965.2,0.89081177]
[1769139000930,0.85380827,2966.4,2965.2,0.89081177]
[1769139001127,0.85380827,2966.3,2965.2,0.89081177]
[1769139001334,0.85380827,2966.2,2965.2,1.0339566]
[1769139001529,1.0336472,2967.2,2965.8,0.89081177]
[1769139001724,0.85368124,2967.1,2965.8,0.89081177]
[1769139001928,0.85368124,2967.0,2965.8,0.89081177]
[1769139002234,0.85368124,2966.9,2966.2,0.005058]
[1769139002429,0.85368124,2966.8,2966.2,0.005058]
[1769139002635,0.14737087,2967.6,2966.2,0.005058]
[1769139002835,0.89081177,2967.1,2966.2,0.005058]
[1769139003037,0.14737087,2967.0,2966.2,0.005058]
[1769139003237,1.00020264,2967.0,2966.2,0.005058]
[1769139003438,0.14737087,2967.0,2966.2,0.005058]
[1769139003637,1.00020522,2966.9,2966.2,0.005058]
[1769139003943,1.00020522,2966.9,2965.0,4.20082736]
[1769139003944,0.14737087,2966.4,2964.9,7.03608798]
[1769139004336,0.14737087,2966.4,2965.0,0.14465329]
[1769139004839,0.14737087,2966.4,2965.2,0.89081177]
[1769139005133,1.03220692,2966.8,2965.5,0.89081177]
[1769139005338,0.85290452,2966.7,2965.5,1.03149518]
[1769139005530,0.85290452,2966.6,2965.6,0.14068341]
[1769139005734,0.005058,2966.9,2965.6,0.14068341]
[1769139005935,0.85284639,2966.8,2965.6,0.14068341]
[1769139006129,0.85284639,2966.7,2965.6,0.14068341]
[1769139006336,0.85284639,2966.6,2965.5,0.89081177]
[1769139006535,0.85284639,2966.5,2965.5,0.89081177]
[1769139006737,0.89081177,2966.8,2965.5,0.89081177]
[1769139006934,0.852788,2966.7,2965.5,0.89081177]
[1769139007131,0.852788,2966.6,2965.5,0.89081177]
[1769139007340,0.89081177,2966.8,2965.5,0.89081177]
[1769139007542,0.85269555,2966.7,2965.5,0.89081177]
[1769139007741,0.85269555,2966.6,2965.5,0.89081177]
[1769139007941,1.03220692,2966.8,2965.5,0.89081177]
[1769139008141,0.85270372,2966.7,2965.5,0.89081177]
[1769139008440,1.03220692,2966.8,2965.5,0.89081177]
[1769139008641,0.85263907,2966.7,2965.5,0.89081177]
[1769139008846,1.03220692,2966.8,2965.5,0.89081177]
[1769139009039,0.85263041,2966.7,2965.5,0.89081177]
[1769139009342,1.03220692,2966.8,2965.5,0.89081177]
[1769139009539,0.85256165,2966.7,2965.5,0.89081177]
[1769139009735,1.03220692,2966.8,2965.5,0.89081177]
[1769139009937,0.85255559,2966.7,2965.5,0.89081177]
[1769139010133,1.03220692,2966.8,2965.5,0.89081177]
[1769139010942,0.005058,2966.9,2965.5,1.03149518]
[1769139011245,0.005058,2966.9,2965.8,0.89081177]
[1769139013142,0.005058,2966.9,2966.1,0.89081177]
[1769139013443,0.14139515,2967.6,2966.1,0.89586977]
[1769139013644,0.85201561,2967.5,2966.1,0.89586977]
[1769139013844,0.85201561,2967.4,2966.1,0.89586977]
[1769139014145,0.85201561,2967.3,2966.1,0.89586977]
[1769139014446,0.89081177,2967.5,2966.1,0.89586977]
[1769139014643,0.85172287,2967.4,2966.1,0.89586977]
[1769139014837,0.89081177,2967.5,2966.1,0.89586977]
[1769139015144,0.85172184,2967.4,2966.1,0.89586977]
[1769139015341,0.89081177,2967.5,2966.1,0.89586977]
[1769139015540,0.85148794,2967.4,2966.1,0.89586977]
[1769139015742,1.03220692,2967.5,2966.1,0.89586977]
[1769139015946,1.03220692,2967.3,2966.1,0.005058]
[1769139016241,0.2737859,2968.3,2966.1,0.005058]
[1769139016242,0.14139515,2967.0,2966.1,0.005058]
[1769139016939,0.89081177,2966.8,2966.1,0.005058]
[1769139017346,0.14139515,2967.0,2966.1,0.005058]
[1769139018749,0.89081177,2966.8,2966.1,0.005058]
[1769139019944,1.03220692,2966.5,2965.1,3.44865915]
[1769139020243,1.03220692,2966.5,2964.3,6.00118195]
[1769139020244,0.14139515,2966.4,2964.9,0.00245895]
[1769139020447,0.14139515,2966.4,2965.1,0.89081177]
[1769139029261,0.14139515,2966.4,2965.0,1.03149518]
[1769139029456,0.005058,2966.7,2964.9,0.00245895]
[1769139029457,1.03220692,2965.9,2964.9,0.00245895]
[1769139032857,0.14139515,2965.9,2964.9,0.00245895]
[1769139034058,0.13872647,2966.4,2964.9,0.00245895]
[1769139034362,0.13872647,2966.2,2964.9,0.00245895]
[1769139034568,0.84964715,2966.1,2964.9,0.00245895]
[1769139034769,0.13872647,2966.2,2964.9,0.00245895]
[1769139034961,0.84963158,2966.1,2964.9,0.00245895]
[1769139035259,0.13872647,2966.2,2964.9,0.00245895]
[1769139035456,0.98821215,2966.1,2964.9,0.00245895]
[1769139035660,0.13872647,2966.1,2964.9,0.00245895]
[1769139038363,0.84917134,2966.0,2964.9,0.00245895]
[1769139038566,0.13872647,2966.1,2964.9,0.00245895]
[1769139038871,0.84917215,2966.0,2964.9,0.00245895]
[1769139039064,0.13872647,2966.1,2964.9,0.00245895]
[1769139039264,0.84909897,2966.0,2964.9,0.00245895]
[1769139039463,0.13872647,2966.1,2964.9,0.00245895]
[1769139039667,0.98782556,2966.0,2964.9,0.00245895]
[1769139039868,0.13872647,2966.0,2964.9,0.00245895]
[1769139040962,0.84907197,2965.9,2964.9,0.00245895]
[1769139041168,0.13872647,2965.8,2964.9,0.00245895]
[1769139041970,0.84902057,2965.7,2964.9,0.00245895]
[1769139042170,0.13872647,2965.6,2963.9,0.16888]
[1769139042467,0.13872647,2965.6,2963.9,0.31725606]
[1769139042863,0.005058,2965.0,2963.9,0.31725606]
[1769139043064,0.005058,2965.0,2963.9,0.3207736]
[1769139043065,0.00750245,2965.0,2963.9,0.3207736]
[1769139043975,0.00750245,2965.0,2963.9,0.00351754]
[1769139046272,0.13872647,2965.7,2964.3,0.14837606]
[1769139046472,0.30747647,2966.1,2964.3,0.14837606]
[1769139046672,0.85122106,2966.0,2964.3,0.14837606]
[1769139046873,0.85122106,2965.9,2964.3,0.14837606]
[1769139047075,0.8515826,2965.8,2964.3,0.14837606]
[1769139047372,0.13872647,2965.8,2964.3,0.14837606]
[1769139047576,0.13872647,2965.8,2964.2,0.005058]
[1769139048473,0.13872647,2965.8,2964.2,2.42222197]
[1769139050077,0.13872647,2965.8,2964.3,2.41716397]
[1769139051576,0.13872647,2965.6,2964.2,0.005058]
[1769139051972,0.13872647,2965.6,2964.2,2.42222197]
[1769139052777,0.13872647,2965.6,2964.2,2.57059803]
[1769139053478,0.13872647,2966.0,2964.3,2.56554003]
[1769139053678,0.98671647,2965.9,2964.3,2.56554003]
[1769139053878,0.13872647,2965.9,2964.3,2.56554003]
[1769139055078,0.13872647,2965.9,2964.4,2.41716397]
[1769139055671,0.13872647,2965.9,2964.3,2.56554003]
[1769139055876,0.13872647,2965.9,2964.4,2.41716397]
[1769139057281,0.98711986,2965.8,2964.4,2.41716397]
[1769139057482,0.13872647,2965.8,2964.4,2.41716397]
[1769139058476,0.84860233,2965.7,2964.3,2.56554003]
[1769139058681,0.13872647,2965.8,2964.3,2.56554003]
[1769139058882,0.13872647,2965.6,2964.3,2.56554003]
[1769139059482,0.13872647,2965.6,2964.2,2.42222197]
[1769139059682,0.98762171,2965.5,2964.2,2.42222197]
[1769139059881,0.98766539,2965.4,2964.2,0.005058]
[1769139060087,0.13872647,2965.4,2964.2,0.005058]
[1769139061081,0.84897042,2965.3,2964.2,0.005058]
[1769139061379,0.005058,2965.1,2964.2,0.005058]
[1769139075886,0.15090978,2965.1,2964.2,0.005058]
[1769139081602,0.99664188,2965.0,2964.2,0.005058]
[1769139081803,0.005058,2965.1,2964.2,0.005058]
[1769139081804,0.14585178,2964.9,2964.2,0.005058]
[1769139083007,0.14585178,2964.7,2963.9,0.00351754]
[1769139088309,0.14585178,2964.7,2963.2,2.41716397]
[1769139088610,0.14585178,2964.5,2963.1,6.27916397]
[1769139089405,0.14938383,2964.5,2963.2,2.41716397]
[1769139089804,0.14938383,2964.5,2963.1,6.42162347]
[1769139090008,0.14938383,2964.5,2963.2,2.41716397]
[1769139090508,0.14938383,2964.5,2963.1,4.0044595]
[1769139090509,0.14938383,2964.5,2963.1,6.42162347]
[1769139091807,0.14938383,2964.5,2963.2,0.14262299]
[1769139092015,0.00353205,2964.5,2963.3,0.14262299]
[1769139092905,0.00353205,2964.5,2963.5,0.8917317]
[1769139097919,0.00353205,2964.5,2963.9,0.8917317]
[1769139098119,0.005058,2965.1,2964.2,0.8917317]
[1769139101217,0.005058,2965.1,2963.9,3.30889567]
[1769139104122,0.005058,2965.1,2963.9,0.8917317]
[1769139104721,0.005058,2965.1,2963.8,2.55978696]
[1769139104722,1.03742072,2964.9,2963.7,2.41716397]
[1769139105021,0.8917317,2964.6,2963.6,2.41716397]
[1769139105220,0.8917317,2964.6,2963.3,3.30889567]
[1769139105617,0.14568902,2964.8,2963.3,3.30889567]
[1769139106225,0.84944667,2964.7,2963.3,3.30889567]
[1769139106419,0.14568902,2964.8,2963.3,3.30889567]
[1769139106619,0.84944673,2964.7,2963.3,3.30889567]
[1769139106919,0.14568902,2964.8,2963.3,3.30889567]
[1769139107119,0.99666173,2964.7,2963.3,3.30889567]
[1769139107320,0.14568902,2964.7,2963.3,3.30889567]
[1769139112224,0.14568902,2964.7,2963.3,0.8917317]
[1769139113029,0.14568902,2964.7,2963.3,1.03435469]
[1769139113327,0.14568902,2964.7,2963.6,0.8917317]
[1769139113526,0.8917317,2964.9,2963.6,0.8917317]
[1769139113729,0.85112991,2964.8,2963.6,0.8917317]
[1769139113929,0.85112991,2964.7,2963.6,0.8917317]
[1769139114130,0.8917317,2964.9,2963.6,0.8917317]
[1769139114428,0.85112793,2964.8,2963.6,0.8917317]
[1769139114625,0.85112793,2964.7,2963.6,0.8917317]
[1769139114826,1.03742072,2964.9,2963.6,0.8917317]
[1769139115028,0.85112789,2964.8,2963.4,0.14262299]
[1769139115217,0.85112789,2964.7,2963.4,0.14262299]
[1769139115423,1.03742072,2964.7,2963.3,0.8917317]
[1769139117032,0.14568902,2964.6,2963.3,0.8917317]
[1769139120131,0.14568902,2964.6,2963.3,3.30889567]
[1769139120332,0.14568902,2964.6,2963.3,0.8917317]
[1769139122027,0.14568902,2964.6,2963.3,3.30889567]
[1769139124031,1.03748596,2965.0,2963.4,0.14770026]
[1769139124228,0.8917317,2964.7,2963.4,0.14770026]
[1769139124435,1.03748596,2964.7,2963.3,3.30889567]
[1769139128438,0.85106408,2964.6,2963.3,0.8917317]
[1769139128637,1.03748596,2964.7,2963.3,0.8917317]
[1769139128838,0.85106408,2964.6,2963.3,0.8917317]
[1769139129138,1.03748596,2964.7,2963.3,1.03819456]
[1769139129338,0.15665521,2965.1,2963.9,0.8917317]
[1769139129840,0.15665521,2965.1,2963.6,0.8917317]
[1769139136043,0.15665521,2965.1,2963.9,0.8917317]
[1769139136246,0.005058,2965.1,2964.2,0.8917317]
[1769139136447,0.005058,2965.1,2964.0,0.8917317]
[1769139138450,0.005058,2965.1,2964.0,3.30889567]
[1769139139146,0.005058,2965.1,2964.0,0.8917317]
[1769139141248,0.15625544,2965.1,2963.9,2.41716397]
[1769139144257,0.15625544,2965.1,2963.8,3.30889567]
[1769139144961,0.15625544,2965.1,2963.9,2.41716397]
[1769139147459,0.15625544,2965.1,2963.8,3.30889567]
[1769139148161,0.14978424,2964.9,2963.8,2.41716397]
[1769139148363,0.14978424,2964.9,2963.6,2.41716397]
[1769139153465,0.005058,2965.1,2964.1,0.8917317]
[1769139154861,0.005058,2965.1,2963.9,2.41716397]
[1769139156773,0.005058,2965.1,2964.0,2.41716397]
[1769139158169,0.005058,2965.1,2964.1,2.41716397]
[1769139158666,0.005058,2965.1,2964.0,2.41716397]
[1769139159866,0.005058,2965.1,2964.1,2.41716397]
[1769139161068,0.005058,2965.1,2964.0,2.41716397]
[1769139164176,0.005058,2965.1,2964.1,2.41716397]
[1769139178184,0.15448593,2965.1,2964.1,2.41716397]
[1769139178482,0.15448593,2965.1,2963.9,2.41716397]
[1769139180185,0.15448593,2965.1,2964.0,2.41716397]
[1769139180389,0.005058,2965.1,2964.0,2.41716397]
[1769139182892,0.15753381,2965.1,2963.9,2.41716397]
[1769139183092,0.15753381,2965.1,2963.7,3.04356755]
[1769139183093,0.15753381,2965.1,2964.0,2.41716397]
[1769139184992,1.00447867,2965.0,2963.9,2.41716397]
[1769139185187,0.15267645,2965.0,2964.0,2.41716397]
[1769139185390,0.15267645,2965.0,2963.9,2.41716397]
[1769139186405,0.15267645,2964.8,2963.7,2.41716397]
[1769139186695,0.85187628,2964.7,2963.7,2.41716397]
[1769139187296,0.15267645,2964.8,2963.6,6.36316397]
[1769139188385,0.15267645,2964.8,2963.7,2.41716397]
[1769139192293,0.15267645,2964.8,2963.6,3.946]
[1769139193896,0.15267645,2964.8,2963.4,2.41716397]
[1769139194100,0.1531968,2964.6,2963.4,2.41716397]
[1769139194302,0.1531968,2964.6,2963.3,2.41716397]
[1769139195100,0.1531968,2964.6,2963.2,2.41716397]
[1769139203000,0.1531968,2964.6,2963.1,6.37313581]
[1769139204500,0.1531968,2964.6,2963.1,3.95597184]
[1769139205507,0.1531968,2964.6,2963.1,0.00297184]
[1769139206004,0.15337027,2964.4,2963.1,0.00297184]
[1769139209810,0.005058,2965.1,2962.5,2.41716397]
[1769139209811,0.15242316,2964.0,2962.5,2.41716397]
[1769139210011,0.15242316,2964.0,2962.4,3.971]
[1769139210197,0.15242316,2964.0,2962.3,2.41716397]
[1769139210198,0.15242316,2964.0,2962.3,6.38716397]
[1769139210604,0.005058,2963.5,2962.3,6.38716397]
[1769139210809,0.00802984,2963.5,2962.3,6.39076287]
[1769139211509,0.00802984,2963.5,2962.3,3.9735989]
[1769139213111,0.00802984,2963.5,2962.3,6.39076287]
[1769139215102,0.00802984,2963.5,2962.4,0.89240447]
[1769139223328,0.00802984,2963.5,2962.4,3.30956844]
[1769139228229,0.16700484,2963.5,2962.4,3.30956844]
[1769139228424,0.16700484,2963.5,2962.4,0.89240447]
[1769139234324,0.16700484,2963.5,2962.4,3.30956844]
[1769139234927,0.16700484,2963.5,2962.4,0.89240447]
[1769139235125,0.16700484,2963.5,2962.4,3.30956844]
[1769139238232,0.16700484,2963.5,2962.5,2.41716397]
[1769139238437,0.16700484,2963.5,2962.6,2.41716397]
[1769139242040,1.04458882,2963.1,2962.3,0.0035989]
[1769139242239,0.15218435,2963.1,2962.3,0.0035989]
[1769139249347,1.04452367,2962.9,2962.3,0.0035989]
[1769139250850,0.15207238,2962.8,2961.8,2.41716397]
[1769139251848,0.15207238,2962.8,2961.8,2.42143925]
[1769139252448,0.15207238,2962.8,2961.8,0.00427528]
[1769139252754,0.00802984,2963.5,2961.8,0.00427528]
[1769139252755,1.04447685,2962.6,2961.8,0.00427528]
[1769139252953,0.15202269,2962.5,2961.8,0.00427528]
[1769139254748,0.15202269,2962.5,2961.3,2.41716397]
[1769139255055,0.15202269,2962.5,2961.2,3.30956844]
[1769139255656,0.15202269,2962.5,2961.2,3.31296332]
[1769139256249,0.15202269,2962.5,2961.2,0.89579935]
[1769139257358,0.15207274,2963.2,2961.8,0.89240447]
[1769139257557,0.15207274,2963.0,2961.8,0.89240447]
[1769139258057,0.15207274,2962.9,2961.8,0.89240447]
[1769139260860,0.15207274,2962.9,2961.6,0.89240447]
[1769139261161,1.04477938,2962.8,2961.4,0.89240447]
[1769139261361,0.15237491,2962.7,2961.4,0.89240447]
[1769139266258,0.15237491,2962.7,2961.7,0.89240447]
[1769139266462,0.1528834,2963.1,2962.0,0.89240447]
[1769139268661,0.84898919,2963.0,2962.0,0.89240447]
[1769139268859,0.1528834,2963.1,2962.0,0.89240447]
[1769139269060,0.84899888,2963.0,2962.0,0.89240447]
[1769139269360,0.1528834,2963.1,2962.0,0.89240447]
[1769139269661,0.84931246,2963.0,2962.0,0.89240447]
[1769139269862,0.1528834,2963.1,2962.0,0.89240447]
[1769139270058,0.84930461,2963.0,2962.0,0.89240447]
[1769139270259,0.1528834,2963.1,2962.0,0.89240447]
[1769139270463,0.84934767,2963.0,2962.0,0.89240447]
[1769139270764,0.1528834,2963.1,2962.0,0.89240447]
[1769139271066,0.1528834,2963.1,2962.2,0.89240447]
[1769139272766,0.16122492,2963.5,2962.2,0.89240447]
[1769139277067,0.16122492,2963.5,2962.0,2.41716397]
[1769139281866,0.16122492,2963.5,2961.9,2.41716397]
[1769139282272,0.15369539,2963.3,2961.8,2.41716397]
[1769139282465,0.84898019,2963.2,2961.6,2.41716397]
[1769139282661,0.15369539,2963.0,2961.5,2.58617397]
[1769139283262,0.15369539,2963.0,2961.6,2.41716397]
[1769139284976,0.15369539,2963.0,2961.5,2.58617397]
[1769139285173,0.15369539,2963.0,2961.6,2.41716397]
[1769139287072,0.15369539,2963.0,2961.5,2.58617397]
[1769139287278,0.15369539,2963.0,2961.6,2.41716397]
[1769139288777,0.15369539,2963.0,2961.5,2.58617397]
[1769139291184,0.15369539,2963.0,2961.6,2.41716397]
[1769139300796,0.15364853,2962.8,2961.4,5.46073152]
[1769139300998,0.15364853,2962.8,2961.4,2.41716397]
[1769139302295,0.15364853,2962.8,2961.3,2.41716397]
[1769139308211,0.15372746,2962.6,2961.3,2.41716397]
[1769139309605,0.15372746,2962.6,2961.2,2.42055885]
[1769139310204,0.15372746,2962.6,2961.3,2.41716397]
[1769139310710,0.15372746,2962.6,2961.2,2.42055885]
[1769139310907,0.15438068,2962.4,2961.2,0.00339488]